bitfinex/quotes_BTCUSD_20241010
["timestamp","ask_amount","ask_price","bid_price","bid_amount"]
[1728560295699,0.009,61313.0,61312.0,0.18233711]
[1728560296386,0.006,61313.0,61312.0,0.01923711]
[1728560296599,0.006,61313.0,61312.0,0.18233711]
[1728560296805,0.012,61313.0,61312.0,0.18333711]
[1728560300390,0.012,61313.0,61312.0,0.1846081]
[1728560302528,0.012,61313.0,61312.0,0.18333711]
[1728560303218,0.012,61313.0,61312.0,0.18497311]
[1728560304006,0.33593464,61313.0,61312.0,0.02187311]
[1728560304233,0.418737,61313.0,61312.0,0.02187311]
[1728560304484,0.418737,61313.0,61312.0,0.003636]
[1728560304748,0.25564,61313.0,61312.0,0.003636]
[1728560304997,0.418737,61313.0,61312.0,0.003636]
[1728560305234,0.418737,61313.0,61312.0,0.0218675]
[1728560305474,0.418737,61313.0,61312.0,0.003636]
[1728560305723,0.418737,61313.0,61312.0,0.0218675]
[1728560305992,0.418737,61313.0,61312.0,0.003636]
[1728560306745,0.418737,61313.0,61312.0,0.0218675]
[1728560307259,0.33593464,61313.0,61312.0,0.0218675]
[1728560307493,0.17283764,61313.0,61312.0,0.0218675]
[1728560308958,0.33593464,61313.0,61312.0,0.0218675]
[1728560309176,0.17283764,61313.0,61312.0,0.0218675]
[1728560310067,0.33593464,61313.0,61312.0,0.0218675]
[1728560310299,0.17283764,61313.0,61312.0,0.0218675]
[1728560310509,0.33593464,61313.0,61312.0,0.0218675]
[1728560310737,0.17283764,61313.0,61312.0,0.0218675]
[1728560311396,0.33593464,61313.0,61312.0,0.0218675]
[1728560313726,0.33593464,61313.0,61312.0,0.003636]
[1728560315194,0.33593464,61313.0,61312.0,0.00239758]
[1728560333046,0.32993464,61313.0,61312.0,0.00239758]
[1728560333538,0.34293464,61313.0,61312.0,0.00339758]
[1728560333759,0.33693464,61313.0,61312.0,0.002636]
[1728560333970,0.34893464,61313.0,61312.0,0.002636]
[1728560334177,0.39379204,61313.0,61312.0,0.002636]
[1728560334386,0.38179204,61313.0,61312.0,0.002636]
[1728560334593,0.38079204,61313.0,61312.0,0.001636]
[1728560335040,0.34793464,61313.0,61312.0,0.001636]
[1728560339331,0.52063464,61313.0,61312.0,0.001636]
[1728560339539,0.61686223,61313.0,61312.0,0.001636]
[1728560339997,0.66874204,61313.0,61312.0,0.001636]
[1728560340226,0.79108751,61313.0,61312.0,0.001636]
[1728560340435,0.82954865,61313.0,61312.0,0.001636]
[1728560340688,0.66874204,61313.0,61312.0,0.001636]
[1728560341108,0.7546181,61313.0,61312.0,0.001636]
[1728560341311,0.7426181,61313.0,61312.0,0.001636]
[1728560341517,0.65874204,61313.0,61312.0,0.001636]
[1728560341736,0.77062039,61313.0,61312.0,0.001636]
[1728560341937,0.65874204,61313.0,61312.0,0.001636]
[1728560342147,0.75661389,61313.0,61312.0,0.001636]
[1728560342778,0.45944594,61313.0,61312.0,0.001636]
[1728560342982,0.43497717,61313.0,61312.0,0.001636]
[1728560343411,0.33875264,61313.0,61312.0,0.01897097]
[1728560343649,0.35275264,61313.0,61312.0,0.001636]
[1728560343833,0.35275264,61313.0,61312.0,0.01897097]
[1728560345555,0.35275264,61313.0,61312.0,0.001636]
[1728560345980,0.35275264,61313.0,61312.0,0.01897097]
[1728560346192,0.35275264,61313.0,61312.0,0.001636]
[1728560346400,0.35275264,61313.0,61312.0,0.01897097]
[1728560346611,0.35275264,61313.0,61312.0,0.001636]
[1728560347033,0.35275264,61313.0,61312.0,0.01897097]
[1728560347248,0.35275264,61313.0,61312.0,0.001636]
[1728560347495,0.35275264,61313.0,61312.0,0.01897097]
[1728560347729,0.35220662,61313.0,61312.0,0.001636]
[1728560347941,0.18910962,61313.0,61312.0,0.18207097]
[1728560348157,0.18910962,61313.0,61312.0,0.001636]
[1728560348370,0.18910962,61313.0,61312.0,0.18207097]
[1728560348569,0.18910962,61313.0,61312.0,0.164736]
[1728560348838,0.18910962,61313.0,61312.0,0.18207097]
[1728560349071,0.17510962,61313.0,61312.0,0.01897097]
[1728560349277,0.18910962,61313.0,61312.0,0.01897097]
[1728560349729,0.17510962,61313.0,61312.0,0.01897097]
[1728560349959,0.16110962,61313.0,61312.0,0.18207097]
[1728560350429,0.17510962,61313.0,61312.0,0.18207097]
[1728560350631,0.16110962,61313.0,61312.0,0.18207097]
[1728560350860,0.16110962,61313.0,61312.0,0.01897097]
[1728560351075,0.16910962,61313.0,61312.0,0.01897097]
[1728560351503,0.16910962,61313.0,61312.0,0.001636]
[1728560351738,0.17810962,61313.0,61312.0,0.001636]
[1728560351952,0.17810962,61313.0,61312.0,0.164736]
[1728560352520,0.17810962,61313.0,61312.0,0.01896561]
[1728560352746,0.17810962,61313.0,61312.0,0.18206561]
[1728560352944,0.17810962,61313.0,61312.0,0.01896561]
[1728560353367,0.17810962,61313.0,61312.0,0.18206561]
[1728560354028,0.17810962,61313.0,61312.0,0.01896561]
[1728560354243,0.17810962,61313.0,61312.0,0.18206561]
[1728560354652,0.17810962,61313.0,61312.0,0.01896561]
[1728560354860,0.17810962,61313.0,61312.0,0.18206561]
[1728560355041,0.17810962,61313.0,61312.0,0.01896561]
[1728560355281,0.17810962,61313.0,61312.0,0.18206561]
[1728560355467,0.17810962,61313.0,61312.0,0.164736]
[1728560355671,0.17810962,61313.0,61312.0,0.01896561]
[1728560356075,0.17784207,61313.0,61312.0,0.01896561]
[1728560356318,0.17784207,61313.0,61312.0,0.18206561]
[1728560356501,0.17784207,61313.0,61312.0,0.01896561]
[1728560357204,0.17784207,61313.0,61312.0,0.001636]
[1728560357469,0.17784207,61313.0,61312.0,0.01896561]
[1728560357701,0.34093907,61313.0,61312.0,0.01896561]
[1728560359435,0.17784207,61313.0,61312.0,0.01896561]
[1728560359851,0.34093907,61313.0,61312.0,0.01896561]
[1728560364664,0.17784207,61313.0,61312.0,0.01896561]
[1728560365507,0.34093907,61313.0,61312.0,0.01896561]
[1728560366087,0.34015231,61313.0,61312.0,0.001636]
[1728560374683,0.42125231,61313.0,61312.0,0.001636]
[1728560375520,0.47021243,61313.0,61312.0,0.001636]
[1728560376221,0.38911243,61313.0,61312.0,0.001636]
[1728560377065,0.38911022,61313.0,61312.0,0.001636]
[1728560377492,0.34015231,61313.0,61312.0,0.001636]
[1728560379129,0.17705531,61313.0,61312.0,0.001636]
[1728560379350,0.17705531,61313.0,61312.0,0.01526623]
[1728560380189,0.34015231,61313.0,61312.0,0.01526623]
[1728560381256,0.34015231,61313.0,61312.0,0.001636]
[1728560382151,0.17705531,61313.0,61312.0,0.001636]
[1728560382388,0.17705531,61313.0,61312.0,0.01526623]
[1728560382624,0.34015231,61313.0,61312.0,0.001636]
[1728560382856,0.34015231,61313.0,61312.0,0.01526623]
[1728560383094,0.34015231,61313.0,61312.0,0.001636]
[1728560383328,0.17705531,61313.0,61312.0,0.164736]
[1728560383758,0.17705531,61313.0,61312.0,0.17836623]
[1728560384173,0.17705531,61313.0,61312.0,0.01526623]
[1728560385027,0.17705531,61313.0,61312.0,0.17836623]
[1728560385508,0.17705531,61313.0,61312.0,0.01526623]
[1728560385992,0.17705531,61313.0,61312.0,0.17836623]
[1728560398952,0.17705531,61313.0,61312.0,0.01526623]
[1728560400456,0.34015231,61313.0,61312.0,0.01526623]
[1728560400670,0.41395708,61313.0,61312.0,0.01526623]
[1728560401124,0.46292208,61313.0,61312.0,0.001636]
[1728560401340,0.34015231,61313.0,61312.0,0.001636]
[1728560401549,0.38011624,61313.0,61312.0,0.001636]
[1728560401987,0.37211624,61313.0,61312.0,0.001636]
[1728560402245,0.38611624,61313.0,61312.0,0.001636]
[1728560402457,0.40011624,61313.0,61312.0,0.001636]
[1728560403095,0.38611624,61313.0,61312.0,0.001636]
[1728560403306,0.40011624,61313.0,61312.0,0.001636]
[1728560403790,0.35115231,61313.0,61312.0,0.001636]
[1728560404004,0.38611391,61313.0,61312.0,0.001636]
[1728560404495,0.23701691,61313.0,61312.0,0.001636]
[1728560404697,0.40011391,61313.0,61312.0,0.001636]
[1728560404900,0.23701691,61313.0,61312.0,0.01527113]
[1728560405108,0.35115231,61313.0,61312.0,0.001636]
[1728560405335,0.35115231,61313.0,61312.0,0.01527113]
[1728560405547,0.35115231,61313.0,61312.0,0.001636]
[1728560405753,0.35115231,61313.0,61312.0,0.01527113]
[1728560405969,0.35115231,61313.0,61312.0,0.001636]
[1728560408905,0.44575231,61313.0,61312.0,0.001636]
[1728560410003,0.4947097,61313.0,61312.0,0.001636]
[1728560410431,0.44575231,61313.0,61312.0,0.001636]
[1728560410861,0.44548319,61313.0,61312.0,0.001636]
[1728560416289,0.35088319,61313.0,61312.0,0.001636]
[1728560416535,0.35088319,61313.0,61312.0,0.01526878]
[1728560418093,0.35088319,61313.0,61312.0,0.001636]
[1728560418722,0.33688319,61313.0,61312.0,0.001636]
[1728560419372,0.35088319,61313.0,61312.0,0.01526878]
[1728560425355,0.35088319,61313.0,61312.0,0.001636]
[1728560425790,0.35088319,61313.0,61312.0,0.01537802]
[1728560430606,0.35088319,61313.0,61312.0,0.001636]
[1728560436742,0.90086449,61313.0,61312.0,0.001636]
[1728560436978,1.05106822,61313.0,61312.0,0.001636]
[1728560437207,0.953159,61313.0,61312.0,0.001636]
[1728560437634,0.939159,61313.0,61312.0,0.001636]
[1728560438058,0.953159,61313.0,61312.0,0.001636]
[1728560438268,1.10004147,61313.0,61312.0,0.001636]
[1728560438489,1.08604147,61313.0,61312.0,0.001636]
[1728560438694,0.91707028,61313.0,61312.0,0.001636]
[1728560438905,0.77018781,61313.0,61312.0,0.001636]
[1728560439129,0.5582777,61313.0,61312.0,0.001636]
[1728560439343,0.3701777,61313.0,61312.0,0.001636]
[1728560439616,0.41031316,61313.0,61312.0,0.001636]
[1728560439867,0.42431316,61313.0,61312.0,0.001636]
[1728560440103,0.35088319,61313.0,61312.0,0.001636]
[1728560440319,0.33688319,61313.0,61312.0,0.0157446]
[1728560440527,0.32288319,61313.0,61312.0,0.001636]
[1728560440737,0.35088319,61313.0,61312.0,0.0157446]
[1728560441248,0.33688319,61313.0,61312.0,0.0157446]
[1728560441710,0.34688319,61313.0,61312.0,0.0157446]
[1728560442143,0.33288319,61313.0,61312.0,0.0157446]
[1728560442365,0.34188319,61313.0,61312.0,0.001636]
[1728560443873,0.33188319,61313.0,61312.0,0.001636]
[1728560449725,0.31288319,61313.0,61312.0,0.001636]
[1728560449935,0.32588319,61313.0,61312.0,0.001636]
[1728560450142,0.33888319,61313.0,61312.0,0.001636]
[1728560451403,0.4655505,61313.0,61312.0,0.001636]
[1728560451824,0.4655505,61313.0,61312.0,0.001236]
[1728560452465,0.4525505,61313.0,61312.0,0.001236]
[1728560452698,0.4665505,61313.0,61312.0,0.001236]
[1728560452901,0.49103416,61313.0,61312.0,0.001236]
[1728560453114,0.47803416,61313.0,61312.0,0.001236]
[1728560453321,0.49203416,61313.0,61312.0,0.001236]
[1728560453531,0.49203715,61313.0,61312.0,0.001236]
[1728560454009,0.41858319,61313.0,61312.0,0.001236]
[1728560454922,0.70029991,61313.0,61312.0,0.001236]
[1728560455146,0.79823853,61313.0,61312.0,0.001236]
[1728560455569,0.86998376,61313.0,61312.0,0.001236]
[1728560455782,0.70917715,61313.0,61312.0,0.001236]
[1728560456301,0.58826704,61313.0,61312.0,0.001236]
[1728560456511,0.57426704,61313.0,61312.0,0.001236]
[1728560456741,0.46584376,61313.0,61312.0,0.001236]
[1728560457168,0.43784376,61313.0,61312.0,0.001236]
[1728560457384,0.37414376,61313.0,61312.0,0.001236]
[1728560457633,0.38984618,61313.0,61312.0,0.001236]
[1728560458095,0.37584618,61313.0,61312.0,0.001236]
[1728560458361,0.38984618,61313.0,61312.0,0.001236]
[1728560458811,0.37584618,61313.0,61312.0,0.001236]
[1728560459036,0.31288319,61313.0,61312.0,0.001236]
[1728560459271,0.32688319,61313.0,61312.0,0.001236]
[1728560459520,0.31288319,61313.0,61312.0,0.001236]
[1728560460006,0.32688319,61313.0,61312.0,0.001236]
[1728560460288,0.34088319,61313.0,61312.0,0.001236]
[1728560460523,0.34088319,61313.0,61312.0,0.01536637]
[1728560460728,0.32688319,61313.0,61312.0,0.001236]
[1728560461015,0.31288319,61313.0,61312.0,0.001236]
[1728560461268,0.31288319,61313.0,61312.0,0.01536637]
[1728560461520,0.32588319,61313.0,61312.0,0.01536637]
[1728560461999,0.31288319,61313.0,61312.0,0.01536637]
[1728560462972,0.32588319,61313.0,61312.0,0.001236]
[1728560463445,0.33588319,61313.0,61312.0,0.001236]
[1728560464190,0.32588319,61313.0,61312.0,0.001236]
[1728560464445,0.33888319,61313.0,61312.0,0.001236]
[1728560469079,0.33888319,61313.0,61312.0,0.01536637]
[1728560469592,0.33888319,61313.0,61312.0,0.001236]
[1728560472413,0.38784618,61313.0,61312.0,0.001236]
[1728560475239,0.33888319,61313.0,61312.0,0.001236]
[1728560479019,0.33888319,61313.0,61312.0,0.01544836]
[1728560479225,0.33888319,61313.0,61312.0,0.001236]
[1728560481857,0.38784618,61313.0,61312.0,0.001236]
[1728560482281,0.33888319,61313.0,61312.0,0.001236]
[1728560482720,0.38784618,61313.0,61312.0,0.001236]
[1728560483802,0.3878556,61313.0,61312.0,0.001236]
[1728560484250,0.33888319,61313.0,61312.0,0.001236]
[1728560485393,0.41234181,61313.0,61312.0,0.001236]
[1728560488283,0.48904384,61313.0,61312.0,0.001236]
[1728560488491,0.41558522,61313.0,61312.0,0.001236]
[1728560488718,0.48907808,61313.0,61312.0,0.001236]
[1728560488933,0.41237605,61313.0,61312.0,0.001236]
[1728560489192,0.3878782,61313.0,61312.0,0.01553375]
[1728560489466,0.33888319,61313.0,61312.0,0.001236]
[1728560489677,0.33888319,61313.0,61312.0,0.01553375]
[1728560489894,0.33888319,61313.0,61312.0,0.001236]
[1728560490124,0.33888319,61313.0,61312.0,0.01553375]
[1728560493739,0.38787444,61313.0,61312.0,0.01553375]
[1728560494012,0.33888319,61313.0,61312.0,0.01553375]
[1728560496700,0.38787444,61313.0,61312.0,0.01553375]
[1728560497164,0.33888319,61313.0,61312.0,0.01553375]
[1728560497640,0.33888319,61313.0,61312.0,0.001236]
[1728560498002,0.51198319,61313.0,61312.0,0.001236]
[1728560498229,0.56097444,61313.0,61312.0,0.001236]
[1728560498832,0.51198319,61313.0,61312.0,0.001236]
[1728560499083,0.42898319,61313.0,61312.0,0.001236]
[1728560499280,0.38787444,61313.0,61312.0,0.001236]
[1728560499483,0.33888319,61313.0,61312.0,0.001236]
[1728560499687,0.38787444,61313.0,61312.0,0.001236]
[1728560499911,0.33888319,61313.0,61312.0,0.001236]
[1728560500113,0.38787444,61313.0,61312.0,0.001236]
[1728560500486,0.33888319,61313.0,61312.0,0.001236]
[1728560500697,0.38787444,61313.0,61312.0,0.001236]
[1728560501963,0.33888319,61313.0,61312.0,0.001236]
[1728560502192,0.38787444,61313.0,61312.0,0.001236]
[1728560502814,0.38788147,61313.0,61312.0,0.001236]
[1728560503447,0.33888319,61313.0,61312.0,0.001236]
[1728560504101,0.38788755,61313.0,61312.0,0.001236]
[1728560504541,0.33888319,61313.0,61312.0,0.001236]
[1728560504968,0.38788915,61313.0,61312.0,0.001236]
[1728560505187,0.41238061,61313.0,61312.0,0.001236]
[1728560512382,0.41239446,61313.0,61312.0,0.001236]
[1728560513715,0.41239482,61313.0,61312.0,0.001236]
[1728560517025,0.41239491,61313.0,61312.0,0.001236]
[1728560521657,0.57320152,61313.0,61312.0,0.001236]
[1728560521863,0.38619123,61313.0,61312.0,0.001236]
[1728560522276,0.50871076,61313.0,61312.0,0.001236]
[1728560523598,0.38619123,61313.0,61312.0,0.001236]
[1728560524283,0.48419788,61313.0,61312.0,0.001236]
[1728560525249,0.41238962,61313.0,61312.0,0.001236]
[1728560525528,0.17578619,61313.0,61312.0,0.12214611]
[1728560525785,0.026818,61313.0,61312.0,0.45634611]
[1728560526032,0.026818,61313.0,61312.0,0.59771193]
[1728560526491,0.026818,61313.0,61312.0,0.64644501]
[1728560526492,0.000818,61313.0,61312.0,0.64644501]
[1728560526734,0.000818,61313.0,61312.0,0.61291688]
[1728560526973,0.003818,61313.0,61312.0,0.59771193]
[1728560527209,0.003818,61313.0,61312.0,0.66664995]
[1728560527459,0.002818,61313.0,61312.0,0.68964995]
[1728560527700,0.000818,61313.0,61312.0,0.52100676]
[1728560527917,0.001818,61313.0,61312.0,0.52100676]
[1728560528135,0.001818,61313.0,61312.0,0.40009665]
[1728560528362,0.001818,61313.0,61312.0,0.48280182]
[1728560528654,0.001818,61313.0,61312.0,0.47780182]
[1728560529337,0.002818,61313.0,61312.0,0.47880182]
[1728560532175,0.002818,61313.0,61312.0,0.48080182]
[1728560533138,0.002818,61313.0,61312.0,0.35789171]
[1728560533368,0.002818,61313.0,61312.0,0.47880182]
[1728560534185,0.002818,61313.0,61312.0,0.48080182]
[1728560534620,0.002818,61313.0,61312.0,0.35789171]
[1728560534993,0.002818,61313.0,61312.0,0.47880182]
[1728560535765,0.002818,61313.0,61312.0,0.35789171]
[1728560535961,0.002818,61313.0,61312.0,0.47880182]
[1728560549885,0.002818,61313.0,61312.0,0.48080182]
[1728560550115,0.002818,61313.0,61312.0,0.47880182]
[1728560554077,0.002818,61313.0,61312.0,0.30770182]
[1728560554742,0.001818,61313.0,61312.0,0.30670182]
[1728560554990,0.16365564,61313.0,61312.0,0.02369171]
[1728560555200,0.34135564,61313.0,61312.0,0.02269171]
[1728560555445,0.16265564,61313.0,61312.0,0.18679171]
[1728560555657,0.16265564,61313.0,61312.0,0.18579171]
[1728560555658,0.16165564,61313.0,61312.0,0.18579171]
[1728560556309,0.16165564,61313.0,61312.0,0.30570182]
[1728560557585,0.005818,61313.0,61312.0,0.30570182]
[1728560558018,0.000818,61313.0,61312.0,0.30570182]
[1728560558864,0.002818,61313.0,61312.0,0.30670182]
[1728560560450,0.001818,61313.0,61312.0,0.30670182]
[1728560561506,0.002818,61313.0,61312.0,0.30770182]
[1728560575235,0.002818,61313.0,61312.0,0.30680182]
[1728560575937,0.002818,61313.0,61312.0,0.30660182]
[1728560576154,0.16365564,61313.0,61312.0,0.18489171]
[1728560576371,0.16365564,61313.0,61312.0,0.02179171]
[1728560576575,0.42221705,61313.0,61312.0,0.02179171]
[1728560576781,0.23995564,61313.0,61312.0,0.02059171]
[1728560576982,0.23795564,61313.0,61312.0,0.01879171]
[1728560577193,0.23795564,61313.0,61312.0,0.18289171]
[1728560577634,0.23795564,61313.0,61312.0,0.18379171]
[1728560577858,0.16165564,61313.0,61312.0,0.18299171]
[1728560578081,0.16165564,61313.0,61312.0,0.30380182]
[1728560578506,0.16165564,61313.0,61312.0,0.30370182]
[1728560578706,0.16165564,61313.0,61312.0,0.30310182]
[1728560578929,0.16165564,61313.0,61312.0,0.30290182]
[1728560579138,0.16165564,61313.0,61312.0,0.30280182]
[1728560579347,0.16165564,61313.0,61312.0,0.30270182]
[1728560581812,0.16165564,61313.0,61312.0,0.30170182]
[1728560583011,0.16165564,61313.0,61312.0,0.30070182]
[1728560583469,0.16465564,61313.0,61312.0,0.30070182]
[1728560585097,0.16465564,61313.0,61312.0,0.30233782]
[1728560585233,0.003818,61313.0,61312.0,0.30233782]
[1728560589114,0.003818,61313.0,61312.0,0.47773782]
[1728560589315,0.003818,61313.0,61312.0,0.87906282]
[1728560589530,0.003818,61313.0,61312.0,0.90610754]
[1728560589742,0.000818,61313.0,61312.0,1.02769968]
[1728560589946,0.000818,61313.0,61312.0,1.02869968]
[1728560590154,0.000818,61313.0,61312.0,1.03069968]
[1728560590365,0.000818,61313.0,61312.0,1.02969968]
[1728560590569,0.001818,61313.0,61312.0,1.03069968]
[1728560590777,0.000818,61313.0,61312.0,1.02969968]
[1728560591025,0.001818,61313.0,61312.0,1.03069968]
[1728560591237,0.002818,61313.0,61312.0,1.03169968]
[1728560591455,0.002818,61313.0,61312.0,1.00727817]
[1728560591669,0.002818,61313.0,61312.0,0.91010754]
[1728560591880,0.002818,61313.0,61312.0,0.98298999]
[1728560592091,0.002818,61313.0,61312.0,0.98298853]
[1728560592296,0.002818,61313.0,61312.0,0.9981708]
[1728560592751,0.002818,61313.0,61312.0,1.03100865]
[1728560592962,0.002818,61313.0,61312.0,1.04618853]
[1728560593396,0.002818,61313.0,61312.0,0.94903358]
[1728560594214,0.002818,61313.0,61312.0,1.02188395]
[1728560594360,0.002818,61313.0,61312.0,0.8425575]
[1728560594571,0.002818,61313.0,61312.0,1.02180936]
[1728560594796,0.002818,61313.0,61312.0,0.94895899]
[1728560595249,0.002818,61313.0,61312.0,1.02178769]
[1728560595474,0.002818,61313.0,61312.0,0.84253583]
[1728560595686,0.002818,61313.0,61312.0,1.02176459]
[1728560596311,0.002818,61313.0,61312.0,0.76769499]
[1728560596552,0.002818,61313.0,61312.0,0.84052369]
[1728560597429,0.002818,61313.0,61312.0,0.84051014]
[1728560597603,0.002818,61313.0,61312.0,0.76969499]
[1728560598171,0.002818,61313.0,61312.0,0.81823248]
[1728560599243,0.002818,61313.0,61312.0,0.81822479]
[1728560599871,0.002818,61313.0,61312.0,0.76969499]
[1728560600513,0.002818,61313.0,61312.0,0.81821807]
[1728560602082,0.002818,61313.0,61312.0,0.84251014]
[1728560602307,0.002818,61313.0,61312.0,0.76969499]
[1728560602564,0.002818,61313.0,61312.0,0.81821615]
[1728560603755,0.002818,61313.0,61312.0,0.84251014]
[1728560603982,0.002818,61313.0,61312.0,0.80265156]
[1728560604259,0.002818,61313.0,61312.0,0.37101847]
[1728560604508,0.002818,61313.0,61312.0,0.40433782]
[1728560605068,0.002818,61313.0,61312.0,0.01832771]
[1728560605069,0.32475264,61313.0,61312.0,0.01832771]
[1728560605313,0.25415564,61313.0,61312.0,0.01932771]
[1728560605551,0.25415564,61313.0,61312.0,0.18242771]
[1728560605552,0.3042809,61313.0,61312.0,0.18242771]
[1728560605779,0.3042809,61313.0,61312.0,0.01932771]
[1728560606257,0.25415564,61313.0,61312.0,0.14023782]
[1728560606500,0.25415564,61313.0,61312.0,0.30333782]
[1728560606980,0.25415564,61313.0,61312.0,0.30433782]
[1728560606981,0.25515564,61313.0,61312.0,0.30433782]
[1728560607213,0.24533014,61313.0,61312.0,0.30333782]
[1728560607445,0.24633014,61313.0,61312.0,0.30433782]
[1728560607717,0.24533014,61313.0,61312.0,0.30333782]
[1728560607962,0.24433014,61313.0,61312.0,0.30233782]
[1728560608213,0.24533014,61313.0,61312.0,0.30233782]
[1728560610484,0.23915014,61313.0,61312.0,0.30233782]
[1728560618643,0.40224714,61313.0,61312.0,0.01832771]
[1728560618888,0.48014714,61313.0,61312.0,0.01832771]
[1728560619148,0.48096514,61313.0,61312.0,0.01832771]
[1728560619393,0.47996514,61313.0,61312.0,0.001636]
[1728560619916,0.48796514,61313.0,61312.0,0.02174288]
[1728560620168,0.48796514,61313.0,61312.0,0.001636]
[1728560620420,0.48796514,61313.0,61312.0,0.02174288]
[1728560620907,0.49496514,61313.0,61312.0,0.02174288]
[1728560621383,0.33186814,61313.0,61312.0,0.02174288]
[1728560621615,0.49496514,61313.0,61312.0,0.02174288]
[1728560622354,0.33186814,61313.0,61312.0,0.02174288]
[1728560622589,0.33186814,61313.0,61312.0,0.30575299]
[1728560622590,0.16246814,61313.0,61312.0,0.30575299]
[1728560626674,0.015818,61313.0,61312.0,0.30575299]
[1728560631890,0.015818,61313.0,61312.0,0.30901454]
[1728560632601,0.015818,61313.0,61312.0,0.30575299]
[1728560637080,0.007818,61313.0,61312.0,0.30575299]
[1728560637529,0.000818,61313.0,61312.0,0.30575299]
[1728560637756,0.000818,61313.0,61312.0,0.30675299]
[1728560640368,0.000818,61313.0,61312.0,0.18584288]
[1728560640638,0.095218,61313.0,61312.0,0.18584288]
[1728560641601,0.25605564,61313.0,61312.0,0.18484288]
[1728560642968,0.25705564,61313.0,61312.0,0.18484288]
[1728560643502,0.25605564,61313.0,61312.0,0.18484288]
[1728560643727,0.25805564,61313.0,61312.0,0.18484288]
[1728560644171,0.25905564,61313.0,61312.0,0.18484288]
[1728560645274,0.16465564,61313.0,61312.0,0.18484288]
[1728560645501,0.003818,61313.0,61312.0,0.18484288]
[1728560651030,0.003818,61313.0,61312.0,0.28484288]
[1728560656247,0.003818,61313.0,61312.0,0.30889779]
[1728560662597,0.001818,61313.0,61312.0,0.30889779]
[1728560662970,0.002818,61313.0,61312.0,0.30889779]
[1728560663218,0.002818,61313.0,61312.0,0.30989779]
[1728560663432,0.000818,61313.0,61312.0,0.30989779]
[1728560665385,0.000818,61313.0,61312.0,0.58641426]
[1728560665605,0.000818,61313.0,61312.0,0.51349779]
[1728560665816,0.000818,61313.0,61312.0,0.76573797]
[1728560666023,0.000818,61313.0,61312.0,0.66573797]
[1728560666286,0.000818,61313.0,61312.0,0.76573797]
[1728560666915,0.000818,61313.0,61312.0,0.58638231]
[1728560667351,0.000818,61313.0,61312.0,0.51349779]
[1728560667589,0.000818,61313.0,61312.0,0.5772718]
[1728560668252,0.000818,61313.0,61312.0,0.51349779]
[1728560668476,0.000818,61313.0,61312.0,0.52868229]
[1728560669118,0.000818,61313.0,61312.0,0.57727404]
[1728560669328,0.000818,61313.0,61312.0,0.52868229]
[1728560669547,0.000818,61313.0,61312.0,0.57727018]
[1728560671782,0.000818,61313.0,61312.0,0.46828084]
[1728560671989,0.000818,61313.0,61312.0,0.48346149]
[1728560674980,0.000818,61313.0,61312.0,0.43487844]
[1728560675244,0.000818,61313.0,61312.0,0.48345776]
[1728560676643,0.000818,61313.0,61312.0,0.60436787]
[1728560676880,0.000818,61313.0,61312.0,0.90865263]
[1728560677105,0.000818,61313.0,61312.0,0.93292653]
[1728560677566,0.000818,61313.0,61312.0,0.93290551]
[1728560678105,0.000818,61313.0,61312.0,0.8119954]
[1728560678315,0.000818,61313.0,61312.0,0.8099954]
[1728560678534,0.001818,61313.0,61312.0,0.8109954]
[1728560678759,0.001818,61313.0,61312.0,0.8099954]
[1728560679008,0.001818,61313.0,61312.0,0.8129954]
[1728560679215,0.002818,61313.0,61312.0,0.8129954]
[1728560679689,0.002818,61313.0,61312.0,0.78871572]
[1728560680353,0.002818,61313.0,61312.0,0.81298601]
[1728560680584,0.002818,61313.0,61312.0,0.71587418]
[1728560680832,0.002818,61313.0,61312.0,0.79070664]
[1728560681272,0.002818,61313.0,61312.0,0.71787418]
[1728560681766,0.002818,61313.0,61312.0,0.79070444]
[1728560681993,0.002818,61313.0,61312.0,0.71787418]
[1728560682210,0.002818,61313.0,61312.0,0.79070132]
[1728560682450,0.002818,61313.0,61312.0,0.79070226]
[1728560683125,0.002818,61313.0,61312.0,0.53857938]
[1728560683338,0.002818,61313.0,61312.0,0.47698949]
[1728560686342,0.002818,61313.0,61312.0,0.45478193]
[1728560686575,0.002818,61313.0,61312.0,0.46997072]
[1728560689590,0.002818,61313.0,61312.0,0.34906061]
[1728560689811,0.002818,61313.0,61312.0,0.46997072]
[1728560691581,0.002818,61313.0,61312.0,0.44197072]
[1728560691812,0.002818,61313.0,61312.0,0.42678193]
[1728560692551,0.002818,61313.0,61312.0,0.44197525]
[1728560692793,0.002818,61313.0,61312.0,0.42678193]
[1728560697478,0.093518,61313.0,61312.0,0.28181691]
[1728560698363,0.091518,61313.0,61312.0,0.27781691]
[1728560698836,0.096518,61313.0,61312.0,0.27881691]
[1728560699254,0.091518,61313.0,61312.0,0.27781691]
[1728560699484,0.095518,61313.0,61312.0,0.27781691]
[1728560700594,0.098518,61313.0,61312.0,0.27781691]
[1728560701057,0.098518,61313.0,61312.0,0.17781691]
[1728560701509,0.261615,61313.0,61312.0,0.01471691]
[1728560701728,0.50075264,61313.0,61312.0,0.01471691]
[1728560701959,0.33765564,61313.0,61312.0,0.01471691]
[1728560702180,0.5997534,61313.0,61312.0,0.01471691]
[1728560702411,0.50075264,61313.0,61312.0,0.01471691]
[1728560702665,0.50075264,61313.0,61312.0,0.001636]
[1728560703832,0.50075264,61313.0,61312.0,0.01764672]
[1728560704071,0.50075264,61313.0,61312.0,0.001636]
[1728560704569,0.33765564,61313.0,61312.0,0.01764672]
[1728560704788,0.50075264,61313.0,61312.0,0.001636]
[1728560705055,0.50075264,61313.0,61312.0,0.01764672]
[1728560705278,0.50075264,61313.0,61312.0,0.001636]
[1728560705714,0.50075264,61313.0,61312.0,0.01764672]
[1728560709421,0.73697381,61313.0,61312.0,0.01764672]
[1728560709652,0.78587344,61313.0,61312.0,0.01764672]
[1728560709869,0.73697381,61313.0,61312.0,0.01764672]
[1728560710369,0.73297381,61313.0,61312.0,0.01764672]
[1728560710585,0.6880122,61313.0,61312.0,0.01764672]
[1728560710815,0.60923283,61313.0,61312.0,0.01764672]
[1728560711265,0.58923283,61313.0,61312.0,0.01764672]
[1728560711505,0.59723283,61313.0,61312.0,0.01764672]
[1728560711746,0.58923283,61313.0,61312.0,0.01764672]
[1728560711969,0.61223283,61313.0,61312.0,0.01764672]
[1728560712413,0.60323283,61313.0,61312.0,0.01764672]
[1728560712634,0.61723283,61313.0,61312.0,0.01764672]
[1728560712912,0.6014812,61313.0,61312.0,0.01764672]
[1728560713577,0.57703306,61313.0,61312.0,0.01764672]